bitfinex-derivatives/quotes_ETHF0:USTF0_20240923
["timestamp","ask_amount","ask_price","bid_price","bid_amount"]
[1727107529651,3.2078,2690.6,2690.2,2.81]
[1727107529847,0.00376142,2690.7,2690.5,6.0178]
[1727107530170,2.82339999,2692.0,2691.0,0.92897]
[1727107530355,2.82339999,2692.0,2691.4,2.81]
[1727107530561,1.04709999,2692.0,2691.8,2.81]
[1727107530756,3.57915,2692.7,2691.9,4.522]
[1727107531062,3.2078,2693.0,2692.3,2.81]
[1727107531354,0.92805,2693.7,2692.3,2.81]
[1727107531355,3.5791,2693.1,2692.9,2.81]
[1727107531559,0.37131,2693.0,2692.9,2.81]
[1727107531756,3.5791,2693.1,2692.9,2.81]
[1727107531953,3.2078,2693.4,2693.0,4.0849]
[1727107532157,3.2078,2693.4,2692.9,2.81]
[1727107532361,3.2078,2693.4,2693.3,2.81]
[1727107532560,3.2078,2693.7,2693.3,2.81]
[1727107532763,3.2078,2693.7,2693.6,2.81]
[1727107533062,0.37119,2693.9,2693.6,2.81]
[1727107533361,1.02781,2694.4,2693.6,2.81]
[1727107533362,0.04135724,2693.8,2693.6,2.81]
[1727107533863,3.2078,2693.7,2693.6,2.81]
[1727107534056,3.57901,2693.7,2693.6,2.81]
[1727107534257,3.57901,2693.7,2692.5,2.997]
[1727107534258,0.37127,2693.4,2693.3,2.81]
[1727107534562,9.62042724,2693.4,2693.3,2.81]
[1727107534860,0.92818,2693.3,2692.5,2.81]
[1727107535056,0.37133,2692.9,2692.5,2.81]
[1727107535261,0.37136,2692.6,2692.5,2.81]
[1727107535455,0.04135724,2692.6,2692.1,2.81]
[1727107535759,0.37142,2692.2,2692.1,2.81]
[1727107535961,3.2078,2692.4,2691.7,2.81]
[1727107536457,0.04135724,2692.1,2691.7,2.81]
[1727107536662,0.37148,2691.8,2691.7,2.81]
[1727107536860,0.37148,2691.8,2691.4,3.2078]
[1727107536861,3.2078,2691.8,2691.4,3.2078]
[1727107537063,0.37151,2691.6,2691.4,3.2078]
[1727107537366,3.24915724,2692.1,2691.4,3.2078]
[1727107537663,0.42417129,2691.8,2691.6,2.81]
[1727107538164,0.42417129,2691.8,2691.4,3.2078]
[1727107538165,0.05268129,2691.8,2691.4,3.2078]
[1727107538558,0.05268129,2691.6,2691.4,3.2078]
[1727107538958,0.37152,2691.5,2691.4,3.2078]
[1727107539160,0.05268129,2691.6,2691.2,6.0178]
[1727107539763,0.05268129,2691.4,2691.2,6.0178]
[1727107540057,0.05268129,2691.4,2691.2,6.38935]
[1727107540366,0.05268129,2691.4,2691.2,6.0178]
[1727107540567,0.05268129,2691.4,2691.3,4.08754]
[1727107540865,0.37142,2692.2,2691.7,0.37148]
[1727107541082,0.37142,2692.2,2691.7,6.0178]
[1727107541262,0.3849,2692.3,2691.7,6.0178]
[1727107541574,1.02783,2694.4,2693.2,3.2078]
[1727107541862,0.19,2695.5,2691.8,6.92950292]
[1727107541863,3.2078,2695.5,2694.3,3.2078]
[1727107542062,0.37109,2694.7,2694.2,2.81]
[1727107542263,3.2078,2695.2,2694.4,3.2078]
[1727107542461,0.92731,2695.9,2694.1,3.2078]
[1727107542462,3.2078,2694.8,2694.1,3.2078]
[1727107542656,3.2078,2694.7,2693.8,3.2078]
[1727107543053,0.37114,2694.3,2693.8,3.2078]
[1727107543364,3.2078,2694.4,2693.7,2.81]
[1727107543662,0.03955241,2694.1,2693.7,2.81]
[1727107543864,3.24735241,2694.1,2693.7,2.81]
[1727107544062,3.2078,2693.8,2692.9,2.81]
[1727107544265,3.2078,2693.1,2692.5,6.0178]
[1727107544465,9.1418,2694.0,2692.5,2.81]
[1727107544466,3.57916,2692.7,2692.5,2.81]
[1727107544670,0.03955241,2692.8,2692.5,2.81]
[1727107544968,0.03955241,2692.8,2692.5,6.0178]
[1727107545367,0.05090608,2692.7,2692.5,6.0178]
[1727107545569,0.05090608,2692.7,2692.6,2.81]
[1727107545770,0.37141,2692.3,2692.2,2.81]
[1727107546071,0.37144,2692.1,2691.7,2.81]
[1727107546274,3.57926,2691.9,2691.7,2.81]
[1727107546566,0.42238608,2691.8,2691.7,2.81]
[1727107546968,3.76610608,2691.8,2691.7,2.81]
[1727107547166,0.05090608,2691.8,2691.7,2.81]
[1727107547368,0.42238608,2691.8,2691.7,2.81]
[1727107547767,3.63018608,2691.8,2691.7,2.81]
[1727107547969,7.34538608,2691.8,2691.7,2.81]
[1727107548362,6.97390608,2691.8,2691.7,2.81]
[1727107548967,7.34538608,2691.8,2691.7,2.81]
[1727107549172,9.76610608,2691.8,2691.3,6.0178]
[1727107549373,0.05090608,2691.8,2691.3,6.0178]
[1727107549669,0.05090608,2691.6,2691.3,6.0178]
[1727107550475,3.2078,2691.9,2691.3,6.0178]
[1727107550774,0.05090608,2691.5,2691.3,2.81]
[1727107550969,0.42242608,2691.5,2691.3,2.81]
[1727107551177,4.13762608,2691.5,2691.3,2.81]
[1727107551372,0.05090608,2691.5,2691.3,2.81]
[1727107551677,0.05090608,2691.4,2691.3,2.81]
[1727107552574,0.05090608,2691.4,2691.3,6.38934]
[1727107552763,0.05090608,2691.4,2691.3,9.7338]
[1727107552967,0.05090608,2691.4,2691.3,10.10534]
[1727107553165,0.05090608,2691.4,2691.3,6.0178]
[1727107553670,0.05090608,2691.4,2691.3,2.81]
[1727107554471,0.42243608,2691.4,2691.3,2.81]
[1727107554771,3.76690608,2691.4,2691.0,2.81]
[1727107555080,0.05090608,2691.4,2691.0,2.81]
[1727107555471,0.42244608,2691.4,2691.0,2.81]
[1727107555670,0.05090608,2691.2,2691.0,2.81]
[1727107555874,3.57937,2691.1,2691.0,2.81]
[1727107556372,1.40137391,2693.2,2691.0,5.37]
[1727107556578,3.2078,2693.8,2692.9,2.81]
[1727107556769,0.37121,2693.7,2693.6,2.81]
[1727107556972,0.37121,2693.7,2691.5,3.2078]
[1727107556973,3.2078,2693.7,2692.3,0.3819]
[1727107557275,5.642,2694.6,2693.2,2.81]
[1727107557506,3.2078,2693.7,2692.9,3.2078]
[1727107557682,4.33737878,2695.4,2693.8,2.81]
[1727107557683,0.9276,2695.0,2693.8,2.81]
[1727107557872,0.9276,2695.0,2693.4,0.37125]
[1727107557873,3.2078,2694.3,2693.4,0.37125]
[1727107558067,3.2078,2693.8,2693.2,0.37127]
[1727107558274,3.2078,2693.5,2693.2,1.46128]
[1727107558475,3.2078,2693.5,2693.4,2.81]
[1727107558875,3.2078,2693.5,2693.4,43.61]
[1727107559584,3.2078,2693.5,2693.4,2.81]
[1727107560470,3.2078,2693.5,2693.4,12.89405]
[1727107560671,3.2078,2694.4,2693.4,15.7306]
[1727107560872,0.069,2695.3,2694.3,2.81]
[1727107561077,3.2078,2694.4,2694.3,2.81]
[1727107561883,6.919,2694.4,2694.3,2.81]
[1727107562084,3.2078,2694.4,2694.3,2.81]
[1727107562675,3.2078,2694.9,2694.3,6.5212]
[1727107562876,3.2078,2694.9,2694.8,2.81]
[1727107563372,0.069,2695.4,2694.8,6.5204]
[1727107563580,3.2078,2695.2,2694.5,6.097]
[1727107563880,3.2078,2695.2,2695.1,2.81]
[1727107564288,0.069,2695.4,2695.1,2.81]
[1727107564479,3.2078,2695.2,2695.1,2.81]
[1727107565081,0.37107,2694.8,2694.3,2.81]
[1727107565282,3.2078,2694.5,2694.3,2.81]
[1727107565782,0.3691,2696.4,2693.6,0.7376]
[1727107565783,0.19000494,2697.4,2694.9,3.2078]
[1727107565977,3.2078,2695.8,2695.4,2.81]
[1727107566176,1.85326,2697.9,2695.4,2.81]
[1727107566177,3.2078,2695.5,2695.4,2.81]
[1727107566788,3.2078,2695.5,2694.9,2.81]
[1727107566983,3.2078,2695.0,2694.9,2.81]
[1727107567781,3.2078,2695.0,2694.5,2.81]
[1727107567982,3.2078,2694.7,2694.5,2.81]
[1727107568379,3.2078,2694.7,2694.6,3.7112]
[1727107568586,3.2078,2695.0,2694.6,3.7112]
[1727107568789,3.2078,2695.0,2694.5,8.81]
[1727107568790,0.92725,2696.0,2694.9,2.81]
[1727107568988,3.2078,2695.0,2694.9,2.81]
[1727107569491,3.2078,2695.0,2694.9,6.5204]
[1727107569698,3.2078,2695.0,2694.9,6.89145]
[1727107569982,1.87248129,2695.0,2694.9,12.89145]
[1727107570383,3.2078,2695.4,2694.9,12.89145]
[1727107570590,3.2078,2695.0,2694.9,2.81]
[1727107571085,3.2078,2695.0,2694.9,6.5204]
[1727107572789,3.2078,2695.0,2694.9,12.5204]
[1727107572979,3.2078,2695.0,2694.9,8.81]
[1727107573180,3.2078,2695.0,2694.9,12.5204]
[1727107573783,2.0254,2695.0,2694.9,12.89145]
[1727107574292,0.3853,2696.2,2694.9,12.5204]
[1727107574293,3.2078,2695.3,2694.9,12.5204]
[1727107574487,3.2078,2695.8,2695.0,10.21058]
[1727107574695,0.37082,2696.6,2695.7,2.81]
[1727107574884,0.3868,2697.6,2696.3,2.81]
[1727107574885,0.9268,2697.3,2696.3,2.81]
[1727107575094,0.37084,2696.4,2696.3,43.61]
[1727107575286,3.2078,2697.0,2696.3,43.61]
[1727107575485,3.2078,2697.0,2696.3,6.72555782]
[1727107575689,3.2078,2697.0,2696.5,0.37082]
[1727107575889,3.2078,2697.0,2696.6,40.8]
[1727107576090,0.3868,2697.6,2695.5,9.468]
[1727107576091,3.2078,2696.7,2695.5,0.187]
[1727107576287,0.92682,2697.3,2695.4,2.81]
[1727107576288,3.2078,2695.9,2695.4,2.81]
[1727107576496,3.2078,2695.9,2695.6,4.14868099]
[1727107576697,3.2078,2696.2,2695.5,4.14868099]
[1727107576884,3.2078,2696.2,2695.4,3.2078]
[1727107577393,0.37095,2695.7,2695.1,3.2078]
[1727107577593,0.37093,2695.8,2695.1,3.2078]
[1727107577799,3.2078,2695.9,2695.1,3.2078]
[1727107578594,3.2078,2695.9,2695.3,0.37099]
[1727107578798,3.2078,2695.9,2695.1,44.0078]
[1727107578989,0.37095,2695.7,2695.1,3.2078]
[1727107579403,0.37094,2695.7,2695.1,3.2078]
[1727107579900,3.57872,2695.9,2695.1,3.2078]
[1727107580094,3.2078,2695.9,2695.2,0.37101]
[1727107580293,3.2078,2695.9,2695.2,6.924]
[1727107580490,3.2078,2695.9,2695.2,6.553]
[1727107580801,3.2078,2696.2,2695.4,2.81]
[1727107581104,3.2078,2695.8,2695.1,3.2078]
[1727107581401,3.2078,2696.1,2695.5,7.08700642]
[1727107581603,3.2078,2696.1,2695.5,2.81]
[1727107581796,0.3718,2696.9,2696.0,3.2078]
[1727107581990,0.37076,2697.0,2696.5,3.2078]
[1727107582389,0.37078,2696.9,2696.5,3.2078]
[1727107582595,0.3571,2697.1,2696.2,3.57866]
[1727107582798,0.37079,2696.8,2696.2,3.2078]
[1727107582997,0.3571,2697.1,2696.2,3.2078]
[1727107583199,0.3708,2696.7,2696.2,3.2078]
[1727107583499,3.57858,2696.9,2696.2,3.2078]
[1727107583703,0.37079,2696.8,2696.2,3.2078]
[1727107583898,0.3708,2696.7,2696.2,3.2078]
[1727107584105,0.37084,2696.4,2696.2,3.2078]
[1727107584402,0.3571,2697.1,2696.3,3.7088]
[1727107584598,0.3708,2696.8,2696.2,3.2078]
[1727107585192,3.2078,2696.6,2696.2,3.2078]
[1727107585497,3.2078,2696.6,2696.0,0.3672]
[1727107585498,3.2078,2696.6,2695.4,0.187]
[1727107585699,3.2078,2696.0,2695.5,2.81]
[1727107585902,3.57865,2696.4,2695.6,0.37095]
[1727107586101,0.37086,2696.3,2695.6,0.37095]
[1727107586308,3.2078,2697.0,2695.7,0.37094]
[1727107586309,0.37084,2696.5,2695.7,0.37094]
[1727107586496,3.2078,2697.0,2695.9,0.3709]
[1727107586696,3.2078,2696.9,2695.6,3.2078]
[1727107586894,3.2078,2696.4,2696.1,0.37088]
[1727107587097,3.2078,2696.9,2695.8,4.06425391]
[1727107587393,3.57866,2696.3,2695.6,3.2078]
[1727107587795,3.2078,2696.3,2695.6,3.2078]
[1727107588199,0.37089,2696.1,2695.6,3.2078]
[1727107588401,3.2078,2696.3,2695.6,3.2078]
[1727107588402,0.3709,2696.0,2695.6,3.2078]
[1727107588597,0.37091,2695.9,2695.6,3.2078]
[1727107588803,3.2078,2696.3,2695.3,3.57878]
[1727107588998,0.3709,2696.0,2695.3,3.2078]
[1727107589299,3.2078,2696.0,2695.5,2.81]
[1727107589500,3.2078,2696.3,2695.9,0.3709]
[1727107589692,3.2078,2696.4,2696.0,0.37089]
[1727107589894,3.2078,2696.4,2696.0,0.37088]
[1727107590095,3.2078,2696.4,2696.1,3.7088]
[1727107590299,3.2078,2696.4,2696.1,0.7316]
[1727107590500,3.2078,2696.4,2696.1,4.4404]
[1727107590704,3.2078,2696.4,2695.6,3.2078]
[1727107591001,3.2078,2696.4,2695.4,0.3839]
[1727107591203,3.2078,2695.9,2695.4,0.3839]
[1727107591504,3.2078,2695.9,2695.5,41.17096]
[1727107591701,3.2078,2695.9,2695.5,40.8]
[1727107592007,0.37094,2695.7,2695.2,3.2078]
[1727107592203,0.37097,2695.5,2695.2,3.2078]
[1727107592398,3.5861,2696.2,2695.2,3.2078]
[1727107592600,3.2078,2695.8,2695.2,3.2078]
[1727107592794,3.5861,2696.2,2695.4,0.37097]
[1727107593001,3.2078,2695.7,2695.2,3.2078]
[1727107593315,0.37094,2695.7,2695.2,3.2078]
[1727107593602,3.2078,2695.7,2695.3,3.7096]
[1727107593802,3.2078,2696.1,2695.6,0.37094]
[1727107594106,3.2078,2695.8,2695.6,0.37095]
[1727107594509,3.2078,2695.8,2695.6,3.7096]
[1727107594703,3.2078,2695.8,2695.3,0.3753]
[1727107595226,3.2078,2695.8,2695.4,0.37098]
[1727107595409,3.2078,2695.8,2695.0,43.61]
[1727107595703,3.2078,2695.8,2695.1,3.2078]
[1727107595901,3.2078,2695.8,2695.2,0.371]
[1727107596104,3.2078,2695.8,2695.3,0.37098]
[1727107596298,3.2078,2695.8,2695.4,0.37097]
[1727107596499,0.37062,2698.0,2697.9,3.2078]
[1727107596707,0.92622,2699.0,2697.9,3.2078]
[1727107596910,5.00235,2698.9,2698.8,2.43343]
[1727107597103,0.3705,2698.9,2698.8,2.43343]
[1727107597405,0.82903447,2699.5,2698.8,4.38463]
[1727107597601,1.85072,2701.6,2699.4,3.2078]
[1727107597807,2.38681191,2702.8,2701.5,2.81]
[1727107598004,0.37002,2702.4,2701.5,3.2078]
[1727107598304,0.37002,2702.4,2701.1,2.81]
[1727107598305,3.2078,2701.6,2701.1,2.81]
[1727107598512,2.8198,2701.2,2701.1,3.7024]
[1727107598805,3.2078,2701.4,2700.9,2.81]
[1727107599007,3.0208,2701.1,2700.9,2.81]
[1727107599208,3.0208,2701.1,2700.1,40.8]
[1727107599404,3.2078,2701.1,2700.4,2.81]
[1727107599604,3.2078,2700.5,2700.4,2.81]
[1727107599808,0.92543,2701.3,2700.4,2.81]
[1727107599809,3.2078,2701.3,2700.4,2.81]
[1727107600106,3.2078,2701.3,2699.9,40.8]
[1727107600107,3.2078,2701.3,2700.8,2.81]
[1727107600312,3.2078,2701.0,2700.8,2.81]
[1727107600912,3.2078,2701.0,2700.4,2.81]
[1727107601104,3.2078,2701.0,2699.0,0.92621]
[1727107601105,3.2078,2701.0,2700.8,2.81]
[1727107601414,3.2078,2701.0,2700.9,44.5024]
[1727107601612,3.2078,2701.0,2700.8,2.81]
[1727107601911,12.082,2703.1,2700.8,2.81]
[1727107601912,3.2078,2702.4,2700.9,10.7693]
[1727107602098,0.37002,2702.4,2702.0,2.81]
[1727107602304,3.2078,2702.1,2702.0,2.81]
[1727107603010,3.2078,2702.1,2702.0,6.5108]
[1727107603509,3.2078,2702.1,2702.0,2.81]
[1727107603711,3.2078,2702.1,2701.6,2.81]
[1727107604008,0.92489,2702.9,2701.6,2.81]
[1727107604009,3.2078,2701.8,2701.6,2.81]
[1727107604917,3.2078,2701.8,2701.1,2.81]
[1727107605117,0.925,2702.6,2700.6,0.5735]
[1727107605118,3.2078,2701.4,2700.7,2.81]
[1727107605324,3.2078,2701.1,2700.7,2.81]
[1727107606016,3.2078,2701.5,2700.8,0.37024]
[1727107606218,3.2078,2701.5,2700.8,0.37023]
[1727107606420,0.37016,2701.4,2700.7,2.81]
[1727107606720,0.92509,2702.3,2701.0,0.37021]
[1727107606920,3.2078,2701.5,2700.8,4.19690608]
[1727107607117,0.37016,2701.4,2700.7,2.81]
[1727107607417,0.37012,2701.7,2700.8,0.37023]
[1727107607615,3.2078,2701.6,2700.9,0.37022]
[1727107607823,3.57793,2701.6,2700.8,4.50765262]
[1727107608121,3.2078,2701.4,2700.7,2.81]
[1727107608324,0.37018,2701.3,2700.7,2.81]
[1727107608619,0.37018,2701.3,2699.8,0.186]
[1727107608620,3.2078,2700.8,2699.8,0.186]
[1727107608822,10.849,2701.7,2699.4,3.2078]
[1727107608823,0.37038,2699.8,2699.4,3.2078]
[1727107609014,0.37036,2699.9,2699.4,3.2078]
[1727107609216,3.57816,2700.0,2699.4,3.2078]
[1727107609414,3.2078,2700.0,2699.4,3.2078]
[1727107609616,0.37042,2699.5,2699.4,3.2078]
[1727107610024,3.2078,2700.0,2699.4,3.2078]
[1727107610241,3.2078,2700.3,2699.5,2.81]
[1727107610425,0.37032,2700.3,2699.5,2.81]
[1727107610632,0.37031,2700.3,2699.5,2.81]
[1727107610824,3.2078,2700.9,2700.0,3.2078]
[1727107611123,3.2078,2700.5,2699.9,2.81]
[1727107611719,0.7512,2701.2,2699.9,2.81]
[1727107611720,3.2078,2700.2,2699.9,2.81]
[1727107611934,0.7512,2701.2,2699.9,2.81]
[1727107611935,3.2078,2700.0,2699.9,2.81]
[1727107612122,3.2078,2700.0,2699.4,6.0178]
[1727107612327,3.2078,2700.4,2699.4,6.0178]
[1727107612635,0.92565,2700.7,2699.4,6.0178]
[1727107612636,3.57815,2700.0,2699.4,6.0178]
[1727107612823,0.37036,2699.9,2699.4,6.0178]
[1727107613023,3.2078,2700.0,2699.4,6.0178]
[1727107613225,3.2078,2700.0,2699.4,3.2078]
[1727107613419,0.37031,2700.3,2699.4,6.38822]
[1727107613723,3.2078,2700.7,2699.4,6.0178]
[1727107613920,3.2078,2700.7,2699.9,2.81]
[1727107614119,3.2078,2700.7,2700.1,0.37033]
[1727107614325,3.2078,2700.7,2699.9,3.18035]
[1727107614521,3.2078,2700.7,2699.9,2.81]
[1727107614727,3.57805,2700.7,2700.0,40.8]
[1727107614927,3.2078,2700.4,2700.1,0.37032]
[1727107615231,3.2078,2700.4,2700.0,40.8]
[1727107615232,3.2078,2700.8,2700.3,2.81]
[1727107615429,3.2078,2701.1,2700.7,2.81]
[1727107615931,3.2078,2701.1,2700.7,3.18025]
[1727107616132,3.2078,2701.1,2700.7,2.81]
[1727107616734,3.2078,2701.1,2700.8,0.37024]
[1727107616923,3.2078,2701.1,2700.7,2.81]
[1727107617744,3.57801,2701.1,2700.7,2.81]
[1727107617929,3.2078,2701.1,2700.7,2.81]
[1727107618133,3.2078,2700.8,2700.7,2.81]
[1727107618327,3.2078,2701.2,2700.7,2.81]
[1727107618726,3.57797,2701.3,2700.7,3.18025]
[1727107619029,3.2078,2701.3,2700.7,3.18024]
[1727107619232,3.2078,2701.0,2700.7,2.81]
[1727107619623,3.2078,2701.5,2700.7,3.91]
[1727107619828,0.37016,2701.4,2700.8,0.37023]
[1727107620025,3.2078,2701.5,2701.3,0.37016]
[1727107620226,0.37013,2701.7,2701.3,3.7016]
[1727107620431,3.2078,2701.8,2701.1,2.81]
[1727107620731,0.37018,2701.3,2700.7,3.18024]
[1727107620933,0.37018,2701.3,2700.7,2.81]
[1727107621133,3.2078,2701.3,2700.9,0.37021]
[1727107621435,3.2078,2701.3,2700.9,0.37022]
[1727107621636,3.2078,2701.3,2700.7,2.81]
[1727107621835,3.2078,2701.3,2701.0,0.37021]
[1727107622033,0.37018,2701.2,2700.7,2.81]
[1727107622235,3.2078,2701.3,2700.7,4.0]
[1727107622534,3.2078,2701.3,2700.7,1.19]
[1727107622728,4.13334,2701.0,2700.1,0.374]
[1727107622932,3.2078,2700.6,2700.1,0.74433]
[1727107623126,3.2078,2700.6,2700.1,0.374]
[1727107623338,3.2078,2701.2,2700.5,0.37027]
[1727107623634,3.2078,2701.2,2700.7,2.81]
[1727107623832,3.2078,2701.2,2701.1,0.3702]
[1727107624432,3.2078,2701.2,2701.0,0.3702]
[1727107624626,3.2078,2701.2,2700.7,2.81]
[1727107624835,3.2078,2701.8,2701.1,2.81]
[1727107625032,3.57791,2701.8,2701.4,0.37015]
[1727107625228,3.2078,2701.8,2701.4,41.17015]
[1727107625438,3.5779,2701.8,2701.4,41.17015]
[1727107625626,3.2078,2701.8,2701.6,2.81]
[1727107626028,0.37011,2701.7,2701.6,2.81]
[1727107626227,3.2078,2702.4,2701.7,3.7016]
[1727107626428,3.2078,2703.3,2702.2,4.13291]
[1727107626630,4.13234,2703.9,2702.9,2.81]
[1727107626828,0.3814,2704.7,2702.9,3.99]
[1727107626829,3.2078,2703.4,2702.9,3.99]
[1727107627027,3.2078,2703.4,2702.9,2.81]
[1727107627243,1.84864,2704.6,2702.4,3.2078]
[1727107627244,3.2078,2704.0,2703.3,2.81]
[1727107627540,3.2078,2704.3,2703.8,2.81]
[1727107627841,3.2078,2704.3,2703.9,40.8]
[1727107628029,3.2078,2704.3,2703.8,2.81]
[1727107628227,3.2078,2704.6,2704.3,0.36975]
[1727107628427,3.2078,2704.6,2704.3,6.0]
[1727107628632,3.2078,2704.6,2704.4,3.93774167]
[1727107628832,3.2078,2704.6,2703.2,10.37078]
[1727107628833,0.3698,2704.0,2703.4,2.81]
[1727107629036,3.2078,2703.9,2703.0,2.81]
[1727107629240,3.57762,2703.9,2703.4,2.81]
[1727107629538,3.57762,2703.9,2703.5,3.6984]
[1727107629539,3.2078,2703.9,2703.5,3.6984]
[1727107629733,0.36981,2704.0,2703.8,2.81]
[1727107629933,0.36979,2704.1,2703.8,2.81]
[1727107630141,0.36979,2704.1,2703.9,7.89737375]
[1727107630338,4.13207,2704.7,2703.9,3.6984]
[1727107630541,0.36985,2703.7,2703.4,2.81]
[1727107630735,3.2078,2704.0,2703.9,0.36981]
[1727107631042,3.2078,2704.7,2703.9,12.5084]
[1727107631339,3.2078,2704.7,2704.4,2.81]
[1727107631840,3.2078,2704.7,2704.0,2.81]
[1727107632044,0.3864,2705.4,2703.5,2.81]
[1727107632045,3.2078,2704.2,2703.5,2.81]
[1727107632335,3.2078,2704.6,2703.5,2.81]
[1727107632540,3.2078,2703.8,2703.5,2.81]
[1727107633043,3.2078,2703.8,2702.7,3.2078]
[1727107633044,0.92464,2703.6,2702.7,2.81]
[1727107633234,3.2078,2703.1,2702.7,2.81]
[1727107633630,3.2078,2703.1,2702.4,3.2078]
[1727107633834,3.2078,2703.1,2701.8,2.81]
[1727107633835,3.2078,2702.5,2701.8,2.81]
[1727107634035,3.2078,2702.5,2701.2,0.3728]
[1727107634036,3.2078,2702.0,2701.4,2.81]
[1727107634338,2.81,2703.2,2701.4,2.81]
[1727107634339,3.2078,2701.6,2701.4,2.81]
[1727107634644,3.2078,2701.5,2701.4,3.18015]
[1727107634840,3.2078,2701.5,2701.4,2.81]
[1727107635745,6.9094,2701.5,2701.0,2.81]
[1727107636048,3.2078,2701.1,2701.0,2.81]
[1727107636248,3.2078,2701.4,2701.0,3.1802]
[1727107636442,3.2078,2701.4,2701.1,0.37019]
[1727107636641,3.2078,2701.4,2701.0,2.81]
[1727107637041,3.2078,2701.4,2701.0,43.61]
[1727107637245,0.3685,2702.3,2701.1,3.7024]
[1727107637246,3.2078,2701.7,2701.1,3.7024]
[1727107637447,3.2078,2701.4,2701.1,2.81]
[1727107637944,3.2078,2701.4,2700.7,2.81]
[1727107638146,3.2078,2701.5,2700.7,2.81]
[1727107638449,3.2078,2700.9,2700.7,2.81]
[1727107638850,3.2078,2700.9,2700.3,2.81]
[1727107639040,0.37024,2700.8,2700.3,2.81]
[1727107639349,3.2078,2701.0,2699.5,3.2078]
[1727107639350,0.92565,2700.7,2699.5,3.2078]
[1727107639554,3.2078,2700.2,2699.5,3.2078]
[1727107639846,0.3704,2699.7,2699.5,3.2078]
[1727107640046,3.2078,2700.2,2699.5,3.2078]
[1727107640263,0.92571,2700.5,2699.5,3.2078]
[1727107640550,0.37034,2700.1,2699.5,3.2078]
[1727107640844,0.356,2700.7,2699.9,6.0178]
[1727107641043,3.2078,2701.3,2701.1,0.37019]
[1727107641244,3.2078,2701.3,2701.2,2.81]
[1727107642150,3.57797,2701.3,2701.2,2.81]
[1727107642345,0.9253,2701.7,2701.2,2.81]
[1727107642346,3.2078,2701.7,2701.2,2.81]
[1727107642542,3.2078,2701.4,2701.2,2.81]
[1727107642849,3.2078,2701.4,2700.5,0.9257]
[1727107642850,3.2078,2701.8,2701.4,0.37015]
[1727107643051,3.2078,2701.5,2701.3,2.81]
[1727107643241,3.57794,2701.5,2701.3,2.81]
[1727107643545,3.2078,2701.5,2701.3,2.81]
[1727107643745,3.2078,2701.8,2701.4,3.7016]
[1727107644050,3.2078,2701.5,2701.3,2.81]
[1727107644458,3.57795,2701.5,2701.3,2.81]
[1727107644745,3.2078,2701.5,2701.3,2.81]
[1727107644947,3.2078,2701.8,2701.4,4.07175]
[1727107645152,3.2078,2701.8,2701.4,0.37015]
[1727107645444,3.2078,2701.8,2701.3,2.81]
[1727107645445,3.2078,2701.5,2701.3,2.81]
[1727107645646,3.57795,2701.5,2701.3,2.81]
[1727107645973,0.37018,2701.3,2700.9,2.81]
[1727107646152,3.2078,2701.2,2700.9,2.81]
[1727107646540,3.2078,2701.6,2701.0,3.2078]
[1727107646745,3.2078,2701.6,2701.5,2.81]
[1727107647252,0.37015,2701.5,2701.1,2.81]
[1727107647441,3.2078,2701.3,2701.2,0.37018]
[1727107647759,3.2078,2701.3,2701.1,2.81]
[1727107647952,3.2078,2701.3,2701.2,0.37018]
[1727107648158,3.2078,2701.3,2701.1,3.18019]
[1727107648351,3.2078,2701.3,2701.1,2.81]
[1727107648548,3.2078,2701.3,2701.1,3.18018]
[1727107648856,3.5995,2702.8,2701.2,23.33810507]
[1727107649042,1.90378193,2704.0,2701.2,23.33810507]
[1727107649043,4.13254,2703.4,2702.6,2.81]
[1727107649249,0.92474,2703.3,2702.6,2.81]
[1727107649451,0.92478,2703.2,2702.6,2.81]
[1727107649747,1.11967,2703.5,2702.6,6.0178]
[1727107649951,3.2078,2703.3,2702.6,6.0178]
[1727107650145,3.2078,2703.3,2702.9,0.36994]
[1727107650341,3.5777,2703.3,2702.6,6.0178]
[1727107650555,0.36993,2703.1,2702.6,6.0178]
[1727107650741,3.2078,2703.3,2702.6,6.0178]
[1727107651439,3.2078,2703.3,2702.8,0.36995]
[1727107651751,3.2078,2703.3,2702.6,6.38778]
[1727107651952,3.2078,2703.3,2702.5,40.8]
[1727107651953,4.13256,2703.3,2702.5,40.8]
[1727107652259,0.3699,2703.3,2702.7,3.2078]
[1727107652573,0.36987,2703.5,2702.6,6.0178]
[1727107652743,0.36987,2703.5,2702.8,0.36996]
[1727107652940,3.2078,2703.4,2702.9,0.36995]
[1727107653142,0.36985,2703.7,2703.1,0.36992]
[1727107653443,3.054,2703.9,2703.2,3.2078]
[1727107653652,3.42382,2703.9,2703.3,0.36989]
[1727107653850,3.054,2703.9,2703.2,3.2078]
[1727107654053,3.054,2703.9,2702.8,3.2078]
[1727107654054,0.92457,2703.8,2702.8,3.2078]
[1727107654349,3.2078,2703.4,2702.8,3.2078]